fUST/lending_fUST_20250825
["ID","MTS","AMOUNT","RATE_DAILY","PERIOD"]
[381118269,1756055447295,-1500.0,0.00049589,28]
[381118270,1756055447304,-1500.0,0.00049589,28]
[381118271,1756055447313,-1500.0,0.00049589,28]
[381118272,1756055447323,-1500.0,0.00049589,28]
[381118273,1756055447332,-1500.0,0.00049589,28]
[381118274,1756055447341,-1500.0,0.00049589,28]
[381118275,1756055447351,-2044.05,0.00049589,120]
[381118276,1756055447360,-480.0,0.00049589,120]
[381118277,1756055447370,-1500.0,0.00049589,28]
[381118278,1756055447379,-1500.0,0.00049589,28]
[381118279,1756055447388,-630.537703,0.00049589,28]
[381118280,1756055447397,-480.0,0.00049589,120]
[381118281,1756055447407,-480.0,0.00049589,120]
[381118282,1756055447416,-1235.11,0.00049589,60]
[381118283,1756055447426,-1048.81,0.00049589,120]
[381118284,1756055447436,-488.85,0.00049589,120]
[381118285,1756055447445,-610.78560006,0.00049589,120]
[381118286,1756055447454,-16949.95,0.00049589,120]
[381118287,1756055447463,-480.0,0.00049589,120]
[381118288,1756055447473,-480.0,0.00049589,120]
[381118289,1756055447482,-480.0,0.00049589,120]
[381118290,1756055447491,-572.95,0.00049589,120]
[381118291,1756055447506,-480.0,0.00049589,120]
[381118292,1756055447520,-480.0,0.00049589,120]
[381118293,1756055447532,-480.0,0.00049589,120]
[381118294,1756055447541,-1679.93,0.00049589,120]
[381118295,1756055447550,-480.0,0.00049589,120]
[381118296,1756055447559,-151.0,0.00049589,120]
[381118297,1756055447568,-151.0,0.00049589,120]
[381118298,1756055447577,-480.0,0.00049589,120]
[381118299,1756055447586,-480.0,0.00049589,120]
[381118300,1756055447602,-151.0,0.00049589,120]
[381118301,1756055447612,-480.0,0.00049589,120]
[381118302,1756055447621,-151.0,0.00049589,120]
[381118303,1756055447631,-421.75771627,0.00049589,120]
[381118304,1756055447646,-15430.02,0.00049589,120]
[381118305,1756055447655,-151.0,0.00049589,120]
[381118306,1756055447664,-151.0,0.00049589,120]
[381118307,1756055447675,-480.0,0.00049589,120]
[381118308,1756055447684,-480.0,0.00049589,120]
[381118309,1756055447693,-480.0,0.00049589,120]
[381118310,1756055447703,-627.91,0.00049589,120]
[381118311,1756055447711,-151.0,0.00049589,120]
[381118312,1756055447720,-151.0,0.00049589,120]
[381118313,1756055447730,-480.0,0.00049589,120]
[381118314,1756055447739,-151.0,0.00049589,120]
[381118315,1756055447748,-11298.48,0.00049589,120]
[381118316,1756055447758,-151.0,0.00049589,120]
[381118317,1756055447768,-151.0,0.00049589,120]
[381118318,1756055447777,-786.34,0.00049589,120]
[381118319,1756055447785,-151.0,0.00049589,120]
[381118320,1756055447794,-299.63401021,0.00049589,120]
[381118321,1756055447803,-5788.27,0.00049589,120]
[381118322,1756055447812,-151.0,0.00049589,120]
[381118323,1756055447822,-151.0,0.00049589,120]
[381118324,1756055447830,-480.0,0.00049589,120]
[381118325,1756055447841,-3061.41,0.00049589,120]
[381118326,1756055447851,-480.0,0.00049589,120]
[381118327,1756055447860,-151.0,0.00049589,120]
[381118328,1756055447868,-480.0,0.00049589,120]
[381118329,1756055447878,-480.0,0.00049589,120]
[381118330,1756055447888,-253.018585,0.00049589,120]
[381118331,1756055447897,-458.60851686,0.00049589,120]
[381118332,1756055447906,-480.0,0.00049589,120]
[381118333,1756055447915,-480.0,0.00049589,120]
[381118334,1756055447926,-1006.53,0.00049589,120]
[381118335,1756055447935,-2407.73,0.00049589,120]
[381118336,1756055447944,-813.64,0.00049589,120]
[381118337,1756055447954,-3232.6,0.00049589,120]
[381118339,1756055447963,-480.0,0.00049589,7]
[381118341,1756055447975,-568.64747988,0.00049589,120]
[381118343,1756055447985,-480.0,0.00049589,120]
[381118345,1756055447994,-480.0,0.00049589,120]
[381118347,1756055448004,-3351.84,0.00049589,120]
[381118350,1756055448014,-4066.02,0.00049589,120]
[381118352,1756055448025,-151.0,0.00049589,120]
[381118354,1756055448034,-631.69,0.00049589,120]
[381118355,1756055448044,-151.0,0.00049589,120]
[381118357,1756055448055,-2167.02,0.00049589,120]
[381118359,1756055448065,-154.658264,0.00049589,120]
[381118361,1756055448074,-3152.66,0.00049589,21]
[381118363,1756055448083,-1114.78,0.00049589,120]
[381118365,1756055448093,-615.43066653,0.00049589,120]
[381118367,1756055448103,-5486.35,0.00049589,120]
[381118369,1756055448113,-891.66,0.00049589,120]
[381118371,1756055448122,-480.0,0.00049589,120]
[381118373,1756055448132,-480.0,0.00049589,120]
[381118375,1756055448142,-151.0,0.00049589,15]
[381118377,1756055448151,-151.0,0.00049589,15]
[381118379,1756055448161,-480.0,0.00049589,120]
[381118381,1756055448173,-480.0,0.00049589,120]
[381118383,1756055448183,-151.0,0.00049589,15]
[381118385,1756055448192,-151.0,0.00049589,15]
[381118388,1756055448203,-3640.3,0.00049589,120]
[381118390,1756055448213,-520.8,0.00049589,120]
[381118391,1756055448223,-2288.22,0.00049589,120]
[381118394,1756055448233,-151.0,0.00049589,15]
[381118396,1756055448243,-480.0,0.00049589,120]
[381118398,1756055448254,-480.0,0.00049589,120]
[381118400,1756055448263,-151.0,0.00049589,15]
[381118402,1756055448272,-500.0,0.00049589,120]
[381118404,1756055448284,-500.0,0.00049589,120]
[381118406,1756055448293,-500.0,0.00049589,120]
[381118408,1756055448303,-500.0,0.00049589,120]
[381118410,1756055448312,-500.0,0.00049589,120]
[381118412,1756055448322,-500.0,0.00049589,120]
[381118414,1756055448331,-500.0,0.00049589,120]
[381118416,1756055448341,-500.0,0.00049589,120]
[381118418,1756055448350,-500.0,0.00049589,120]
[381118420,1756055448360,-480.0,0.00049589,120]
[381118422,1756055448369,-500.0,0.00049589,120]
[381118423,1756055448379,-500.0,0.00049589,120]
[381118426,1756055448389,-480.0,0.00049589,120]
[381118428,1756055448399,-500.0,0.00049589,120]
[381118429,1756055448411,-1243.15,0.00049589,120]
[381118432,1756055448421,-500.0,0.00049589,120]
[381118434,1756055448431,-500.0,0.00049589,120]
[381118436,1756055448440,-2007.52,0.00049589,120]
[381118438,1756055448450,-500.0,0.00049589,120]
[381118440,1756055448460,-500.0,0.00049589,120]
[381118442,1756055448469,-500.0,0.00049589,120]
[381118444,1756055448479,-500.0,0.00049589,120]
[381118446,1756055448488,-321.95406751,0.00049589,120]
[381118447,1756055448498,-480.0,0.00049589,120]
[381118450,1756055448509,-1157.55,0.00049589,120]
[381118452,1756055448520,-686.32,0.00049589,120]
[381118454,1756055448529,-2901.75,0.00049589,120]
[381118456,1756055448539,-1011.15,0.00049589,120]
[381118458,1756055448548,-736.12,0.00049589,120]
[381118460,1756055448558,-4805.56,0.00049589,120]
[381118462,1756055448567,-480.0,0.00049589,120]
[381118464,1756055448576,-480.0,0.00049589,120]
[381118466,1756055448586,-480.0,0.00049589,120]
[381118468,1756055448597,-4608.2,0.00049589,120]
[381118470,1756055448606,-738.85,0.00049589,120]
[381118472,1756055448616,-480.0,0.00049589,120]
[381118474,1756055448626,-480.0,0.00049589,120]
[381118476,1756055448635,-762.65,0.00049589,120]
[381118478,1756055448644,-11933.37,0.00049589,120]
[381118480,1756055448653,-644.7,0.00049589,120]
[381118482,1756055448663,-480.0,0.00049589,120]
[381118484,1756055448677,-604.13,0.00049589,120]
[381118486,1756055448687,-7040.5,0.00049589,120]
[381118488,1756055448696,-480.0,0.00049589,120]
[381118490,1756055448705,-480.0,0.00049589,120]
[381118492,1756055448715,-649.94,0.00049589,120]
[381118494,1756055448724,-623.79,0.00049589,120]
[381118496,1756055448735,-480.0,0.00049589,120]
[381118497,1756055448744,-2178.61,0.00049589,120]
[381118499,1756055448753,-480.0,0.00049589,120]
[381118501,1756055448762,-665.89,0.00049589,120]
[381118503,1756055448772,-629.01640805,0.00049589,2]
[381118505,1756055448781,-221.825483,0.00049589,120]
[381118507,1756055448791,-500.78693277,0.00049589,120]
[381118509,1756055448800,-221.825483,0.00049589,120]
[381118511,1756055448809,-629.97762,0.00049589,120]
[381118513,1756055448818,-480.0,0.00049589,120]
[381118515,1756055448828,-232.42214577,0.000496,3]
[381118518,1756055448838,-844.67759735,0.000496,3]
[381118520,1756055448847,-160.0,0.000496,3]
[381118522,1756055448857,-647.66914228,0.00049686,8]
[381118524,1756055448866,-200.0,0.000497,120]
[381118526,1756055448876,-408.0,0.00049712,2]
[381118528,1756055448885,-200.0,0.00049731,120]
[381118530,1756055448897,-500.0,0.000498,120]
[381118532,1756055448907,-480.0,0.00049863,120]
[381118534,1756055448916,-480.0,0.00049863,120]
[381118536,1756055448928,-480.0,0.00049863,120]
[381118538,1756055448937,-480.0,0.00049863,120]
[381118540,1756055448947,-480.0,0.00049863,120]
[381118542,1756055448957,-480.0,0.00049863,120]
[381118544,1756055448967,-480.0,0.00049863,120]
[381118546,1756055448979,-480.0,0.00049863,120]
[381118548,1756055448989,-1304.33,0.00049863,120]
[381118550,1756055448999,-480.0,0.00049863,120]
[381118552,1756055449008,-480.0,0.00049863,120]
[381118554,1756055449018,-558.0,0.00049863,120]
[381118556,1756055449028,-480.0,0.00049863,120]
[381118557,1756055449038,-480.0,0.00049863,120]
[381118560,1756055449049,-480.0,0.00049863,120]
[381118562,1756055449060,-1204.6,0.00049863,120]
[381118564,1756055449070,-708.36,0.00049863,120]
[381118566,1756055449079,-480.0,0.00049863,120]
[381118568,1756055449089,-480.0,0.00049863,120]
[381118570,1756055449099,-480.0,0.00049863,120]
[381118572,1756055449108,-480.0,0.00049863,120]
[381118574,1756055449118,-480.0,0.00049863,120]
[381118575,1756055449127,-480.0,0.00049863,120]
[381118577,1756055449137,-876.23,0.00049863,120]
[381118579,1756055449148,-480.0,0.00049863,120]
[381118582,1756055449158,-501.47,0.00049863,120]
[381118585,1756055449179,-480.0,0.00049863,120]
[381118587,1756055449189,-528.1927472,0.00049863,120]
[381118589,1756055449200,-987.64,0.00049863,120]
[381118591,1756055449209,-480.0,0.00049863,120]
[381118593,1756055449219,-480.0,0.00049863,2]
[381118595,1756055449229,-1032.37,0.00049863,120]
[381118597,1756055449239,-480.0,0.00049863,120]
[381118599,1756055449248,-1387.16,0.00049863,120]
[381118601,1756055449258,-480.0,0.00049863,120]
[381118603,1756055449268,-480.0,0.00049863,120]
[381118605,1756055449278,-480.0,0.00049863,120]
[381118608,1756055449288,-480.0,0.00049863,120]
[381118610,1756055449297,-480.0,0.00049863,120]
[381118612,1756055449306,-240.17651367,0.00049863,120]
[381118614,1756055449316,-480.0,0.00049863,7]
[381118616,1756055449325,-480.0,0.00049863,120]
[381118618,1756055449334,-480.0,0.00049863,120]
[381118620,1756055449344,-480.0,0.00049863,120]
[381118622,1756055449353,-480.0,0.00049863,120]
[381118624,1756055449363,-480.0,0.00049863,120]
[381118626,1756055449372,-480.0,0.00049863,120]
[381118628,1756055449381,-1009.24,0.00049863,120]
[381118630,1756055449392,-480.0,0.00049863,120]
[381118632,1756055449401,-480.0,0.00049863,120]
[381118635,1756055449412,-639.3,0.00049863,120]
[381118637,1756055449423,-480.0,0.00049863,120]
[381118639,1756055449432,-480.0,0.00049863,120]
[381118641,1756055449441,-480.0,0.00049863,120]
[381118643,1756055449451,-480.0,0.00049863,120]
[381118645,1756055449461,-620.93,0.00049863,120]
[381118647,1756055449470,-531.33,0.00049863,120]
[381118649,1756055449479,-480.0,0.00049863,120]
[381118651,1756055449489,-1028.86,0.00049863,120]
[381118653,1756055449499,-480.0,0.00049863,120]
[381118655,1756055449508,-480.0,0.00049863,120]
[381118657,1756055449517,-480.0,0.00049863,120]
[381118660,1756055449527,-575.38,0.00049863,120]
[381118662,1756055449537,-480.0,0.00049863,120]
[381118664,1756055449547,-480.0,0.00049863,120]
[381118666,1756055449556,-480.0,0.00049863,120]
[381118668,1756055449566,-764.97,0.00049863,7]
[381118670,1756055449575,-480.0,0.00049863,120]
[381118672,1756055449585,-480.0,0.00049863,120]
[381118674,1756055449595,-480.0,0.00049863,120]
[381118676,1756055449604,-480.0,0.00049863,120]
[381118678,1756055449614,-480.0,0.00049863,120]
[381118680,1756055449623,-799.56,0.00049863,120]
[381118682,1756055449633,-228.61435798,0.00049863,120]
[381118685,1756055449643,-823.61,0.00049863,120]
[381118687,1756055449652,-480.0,0.00049863,120]
[381118689,1756055449664,-2054.44,0.00049863,120]
[381118691,1756055449674,-480.0,0.00049863,120]
[381118693,1756055449683,-480.0,0.00049863,120]
[381118695,1756055449692,-1012.25,0.00049863,120]
[381118697,1756055449702,-480.0,0.00049863,120]
[381118699,1756055449712,-1024.39,0.00049863,120]
[381118701,1756055449722,-480.0,0.00049863,120]
[381118702,1756055449731,-480.0,0.00049863,120]
[381118703,1756055449740,-560.12,0.00049863,120]
[381118704,1756055449749,-480.0,0.00049863,120]
[381118705,1756055449759,-693.67,0.00049863,120]
[381118706,1756055449768,-480.0,0.00049863,120]
[381118707,1756055449777,-480.0,0.00049863,120]
[381118708,1756055449786,-480.0,0.00049863,120]
[381118709,1756055449796,-1104.99,0.00049863,120]
[381118710,1756055449805,-480.0,0.00049863,120]
[381118711,1756055449815,-480.0,0.00049863,120]
[381118712,1756055449824,-480.0,0.00049863,120]
[381118713,1756055449833,-480.0,0.00049863,120]
[381118714,1756055449842,-480.0,0.00049863,120]
[381118715,1756055449852,-575.02,0.00049863,120]
[381118716,1756055449861,-480.0,0.00049863,120]
[381118717,1756055449870,-480.0,0.00049863,120]
[381118718,1756055449880,-480.0,0.00049863,120]
[381118719,1756055449889,-480.0,0.00049863,120]
[381118720,1756055449899,-760.49,0.00049863,120]
[381118721,1756055449908,-480.0,0.00049863,120]
[381118722,1756055449918,-480.0,0.00049863,120]
[381118723,1756055449928,-480.0,0.00049863,120]
[381118724,1756055449938,-480.0,0.00049863,120]
[381118725,1756055449948,-480.0,0.00049863,120]
[381118726,1756055449958,-480.0,0.00049863,120]
[381118727,1756055449969,-480.0,0.00049863,120]
[381118728,1756055449984,-480.0,0.00049863,120]
[381118729,1756055449994,-480.0,0.00049863,120]
[381118730,1756055450004,-480.0,0.00049863,120]
[381118731,1756055450014,-480.0,0.00049863,120]
[381118732,1756055450024,-480.0,0.00049863,120]
[381118734,1756055450034,-2800.8,0.00049863,120]
[381118736,1756055450043,-799.54,0.00049863,20]
[381118738,1756055450055,-480.0,0.00049863,120]
[381118740,1756055450066,-480.0,0.00049863,120]
[381118742,1756055450075,-480.0,0.00049863,120]
[381118744,1756055450085,-480.0,0.00049863,120]
[381118746,1756055450098,-480.0,0.00049863,120]
[381118748,1756055450108,-498.36,0.00049863,120]
[381118750,1756055450118,-480.0,0.00049863,120]
[381118752,1756055450128,-480.0,0.00049863,120]
[381118754,1756055450137,-480.0,0.00049863,120]
[381118756,1756055450147,-575.73,0.00049863,120]
[381118758,1756055450156,-2456.9,0.00049863,120]
[381118760,1756055450165,-1110.12,0.00049863,120]
[381118762,1756055450176,-480.0,0.00049863,5]
[381118764,1756055450185,-480.0,0.00049863,120]
[381118766,1756055450195,-480.0,0.00049863,120]
[381118768,1756055450205,-480.0,0.00049863,120]
[381118770,1756055450214,-480.0,0.00049863,120]
[381118772,1756055450223,-845.75,0.00049863,120]
[381118774,1756055450233,-480.0,0.00049863,120]
[381118776,1756055450242,-480.0,0.00049863,120]
[381118778,1756055450252,-480.0,0.00049863,120]
[381118780,1756055450261,-480.0,0.00049863,20]
[381118782,1756055450271,-298.21,0.00049863,120]
[381118784,1756055450280,-480.0,0.00049863,120]
[381118786,1756055450290,-457.22786281,0.00049863,120]
[381118788,1756055450300,-480.0,0.00049863,120]
[381118811,1756055450505,-619.37,0.00049863,120]
[381118813,1756055450515,-480.0,0.00049863,120]
[381118815,1756055450525,-480.0,0.00049863,120]
[381118817,1756055450534,-548.04,0.00049863,120]
[381118819,1756055450544,-480.0,0.00049863,120]
[381118821,1756055450552,-480.0,0.00049863,120]
[381118823,1756055450563,-974.25,0.00049863,120]
[381118825,1756055450572,-1546.9,0.00049863,120]
[381118827,1756055450581,-480.0,0.00049863,120]
[381118829,1756055450590,-480.0,0.00049863,120]
[381118831,1756055450599,-480.0,0.00049863,120]
[381118833,1756055450609,-480.0,0.00049863,120]
[381118835,1756055450618,-805.42,0.00049863,120]
[381118837,1756055450627,-480.0,0.00049863,120]
[381118839,1756055450636,-480.0,0.00049863,120]
[381118841,1756055450645,-480.0,0.00049863,120]
[381118843,1756055450655,-1111.42,0.00049863,120]
[381118845,1756055450664,-2663.88,0.00049863,120]
[381118847,1756055450673,-530.1,0.00049863,120]
[381118849,1756055450683,-168.95675785,0.00049863,120]
[381118852,1756055450694,-480.0,0.00049863,120]
[381118854,1756055450703,-232.70942499,0.00049863,120]
[381118856,1756055450713,-480.0,0.00049863,120]
[381118858,1756055450722,-480.0,0.00049863,120]
[381118860,1756055450732,-480.0,0.00049863,120]
[381118862,1756055450742,-480.0,0.00049863,120]
[381118864,1756055450751,-441.94573009,0.00049863,120]
[381118866,1756055450761,-480.0,0.00049863,120]
[381118868,1756055450770,-579.98,0.00049863,120]
[381118869,1756055450780,-972.33,0.00049863,120]
[381118871,1756055450789,-480.0,0.00049863,120]
[381118873,1756055450798,-480.0,0.00049863,120]
[381118875,1756055450807,-480.0,0.00049863,120]
[381118877,1756055450817,-480.0,0.00049863,120]
[381118879,1756055450826,-480.0,0.00049863,120]
[381118881,1756055450835,-480.0,0.00049863,120]
[381118883,1756055450844,-480.0,0.00049863,120]
[381118885,1756055450853,-480.0,0.00049863,120]
[381118887,1756055450862,-3287.67,0.00049863,120]
[381118889,1756055450871,-761.34,0.00049863,120]
[381118891,1756055450881,-480.0,0.00049863,120]
[381118893,1756055450890,-534.58,0.00049863,120]
[381118895,1756055450899,-4363.52,0.00049863,30]
[381118897,1756055450908,-480.0,0.00049863,120]
[381118899,1756055450918,-480.0,0.00049863,2]
[381118901,1756055450928,-480.0,0.00049863,120]
[381118903,1756055450937,-491.06,0.00049863,120]
[381118905,1756055450947,-924.46,0.00049863,120]
[381118907,1756055450956,-1014.51,0.00049863,120]
[381118909,1756055450966,-480.0,0.00049863,2]
[381118911,1756055450976,-3311.52,0.00049863,120]
[381118913,1756055450987,-480.0,0.00049863,120]
[381118916,1756055450998,-480.0,0.00049863,120]
[381118918,1756055451007,-621.33,0.00049863,120]
[381118920,1756055451016,-5270.82,0.00049863,120]
[381118922,1756055451026,-1603.59,0.00049863,120]
[381118924,1756055451036,-1119.31,0.00049863,120]
[381118926,1756055451045,-480.0,0.00049863,120]
[381118928,1756055451057,-480.0,0.00049863,120]
[381118930,1756055451066,-480.0,0.00049863,120]
[381118932,1756055451075,-480.0,0.00049863,120]
[381118934,1756055451084,-569.63,0.00049863,120]
[381118936,1756055451093,-480.0,0.00049863,120]
[381118938,1756055451102,-480.0,0.00049863,120]
[381118940,1756055451112,-480.0,0.00049863,120]
[381118942,1756055451123,-480.0,0.00049863,120]
[381118944,1756055451133,-480.0,0.00049863,120]
[381118946,1756055451144,-480.0,0.00049863,120]
[381118948,1756055451153,-480.0,0.00049863,120]
[381118950,1756055451162,-2627.16,0.00049863,120]
[381118952,1756055451172,-935.32,0.00049863,120]
[381118954,1756055451181,-480.0,0.00049863,120]
[381118956,1756055451191,-480.0,0.00049863,120]
[381118958,1756055451200,-518.9507433,0.00049863,120]
[381118960,1756055451209,-866.84,0.00049863,120]
[381118962,1756055451218,-969.12,0.00049863,120]
[381118964,1756055451227,-976.22,0.00049863,120]
[381118966,1756055451236,-480.0,0.00049863,120]
[381118968,1756055451245,-2944.02,0.00049863,120]
[381118970,1756055451255,-480.0,0.00049863,120]
[381118972,1756055451264,-921.35,0.00049863,120]
[381118974,1756055451274,-480.0,0.00049863,120]
[381118976,1756055451283,-1268.38,0.00049863,120]
[381118978,1756055451292,-665.21,0.00049863,120]
[381118980,1756055451302,-480.0,0.00049863,120]
[381118982,1756055451311,-480.0,0.00049863,120]
[381118984,1756055451321,-625.26,0.00049863,120]
[381118986,1756055451330,-288.06427217,0.00049863,120]
[381118988,1756055451339,-480.0,0.00049863,120]
[381118990,1756055451349,-566.6,0.00049863,120]
[381118992,1756055451358,-480.0,0.00049863,120]
[381118994,1756055451367,-480.0,0.00049863,120]
[381118996,1756055451377,-2977.66,0.00049863,120]
[381118998,1756055451387,-651.75,0.00049863,120]
[381119000,1756055451396,-1118.94,0.00049863,120]
[381119002,1756055451405,-930.6,0.00049863,120]
[381119004,1756055451415,-751.95,0.00049863,120]
[381119006,1756055451426,-1441.85,0.00049863,120]
[381119008,1756055451436,-480.0,0.00049863,120]
[381119010,1756055451445,-355.74595932,0.00049863,120]
[381119012,1756055451465,-2246.16,0.00049863,120]
[381119013,1756055451474,-480.0,0.00049863,120]
[381119015,1756055451483,-480.0,0.00049863,120]
[381119017,1756055451493,-480.0,0.00049863,120]
[381119019,1756055451502,-15462.69,0.00049863,120]
[381119021,1756055451511,-480.0,0.00049863,120]
[381119023,1756055451521,-480.0,0.00049863,120]
[381119025,1756055451530,-480.0,0.00049863,120]
[381119027,1756055451540,-497.07,0.00049863,120]
[381119029,1756055451549,-480.0,0.00049863,120]
[381119031,1756055451559,-546.70309513,0.00049863,120]
[381119033,1756055451570,-1175.33,0.00049863,120]
[381119035,1756055451579,-480.0,0.00049863,120]
[381119037,1756055451589,-480.0,0.00049863,120]
[381119039,1756055451599,-1135.82,0.00049863,120]
[381119041,1756055451608,-480.0,0.00049863,120]
[381119043,1756055451618,-519.05,0.00049863,120]
[381119046,1756055451628,-1310.76,0.00049863,120]
[381119048,1756055451638,-1104.46,0.00049863,120]
[381119050,1756055451647,-864.79,0.00049863,120]
[381119052,1756055451656,-738.59,0.00049863,120]
[381119053,1756055451665,-480.0,0.00049863,120]
[381119055,1756055451677,-630.98,0.00049863,120]
[381119057,1756055451686,-1103.81,0.00049863,120]
[381119059,1756055451696,-804.25,0.00049863,120]
[381119061,1756055451705,-701.71,0.00049863,120]
[381119063,1756055451715,-1883.78,0.00049863,120]
[381119065,1756055451723,-310.923091,0.00049863,120]
[381119067,1756055451734,-587.56,0.00049863,120]
[381119069,1756055451743,-1052.03,0.00049863,120]
[381119071,1756055451752,-480.0,0.00049863,120]
[381119073,1756055451762,-1011.82,0.00049863,120]
[381119076,1756055451771,-480.0,0.00049863,120]
[381119078,1756055451781,-3938.43,0.00049863,120]
[381119080,1756055451791,-480.0,0.00049863,120]
[381119082,1756055451800,-1352.63,0.00049863,120]
[381119084,1756055451809,-480.0,0.00049863,120]
[381119086,1756055451818,-2029.09,0.00049863,120]
[381119088,1756055451827,-530.95,0.00049863,120]
[381119090,1756055451836,-1852.4,0.00049863,120]
[381119092,1756055451846,-480.0,0.00049863,120]
[381119094,1756055451855,-762.74,0.00049863,120]
[381119096,1756055451864,-1000.07,0.00049863,120]
[381119098,1756055451873,-952.48,0.00049863,120]
[381119100,1756055451883,-480.0,0.00049863,120]
[381119102,1756055451892,-572.6,0.00049863,120]
[381119104,1756055451901,-480.0,0.00049863,120]
[381119106,1756055451910,-480.0,0.00049863,120]
[381119108,1756055451919,-480.0,0.00049863,120]
[381119110,1756055451929,-519.0,0.00049863,120]
[381119112,1756055451938,-1238.73,0.00049863,120]
[381119113,1756055451947,-2313.47,0.00049863,120]
[381119115,1756055451956,-835.28,0.00049863,120]
[381119117,1756055451966,-480.0,0.00049863,120]
[381119119,1756055451978,-480.0,0.00049863,120]
[381119121,1756055451989,-480.0,0.00049863,120]
[381119123,1756055451998,-480.0,0.00049863,120]
[381119125,1756055452008,-480.0,0.00049863,120]
[381119127,1756055452018,-480.0,0.00049863,120]
[381119129,1756055452027,-480.0,0.00049863,2]
[381119131,1756055452037,-1047.71,0.00049863,120]
[381119133,1756055452046,-1134.4,0.00049863,120]
[381119135,1756055452057,-756.43,0.00049863,120]
[381119137,1756055452068,-1313.53,0.00049863,120]
[381119140,1756055452078,-1285.47,0.00049863,120]
[381119141,1756055452088,-531.72,0.00049863,120]
[381119144,1756055452097,-480.0,0.00049863,120]
[381119146,1756055452107,-939.49,0.00049863,120]
[381119148,1756055452116,-496.03,0.00049863,120]
[381119150,1756055452125,-480.0,0.00049863,120]
[381119152,1756055452136,-1167.94,0.00049863,120]
[381119154,1756055452145,-480.0,0.00049863,120]
[381119156,1756055452155,-480.0,0.00049863,120]
[381119158,1756055452164,-480.0,0.00049863,120]
[381119160,1756055452173,-25060.02,0.00049863,120]
[381119162,1756055452182,-607.81,0.00049863,120]
[381119164,1756055452192,-1756.32,0.00049863,120]
[381119165,1756055452201,-480.0,0.00049863,120]
[381119167,1756055452211,-480.0,0.00049863,120]
[381119169,1756055452220,-1176.73,0.00049863,120]
[381119171,1756055452229,-480.0,0.00049863,120]
[381119173,1756055452239,-480.0,0.00049863,120]
[381119175,1756055452249,-480.0,0.00049863,120]
[381119178,1756055452259,-660.08,0.00049863,120]
[381119180,1756055452269,-1203.06,0.00049863,120]
[381119182,1756055452278,-680.53,0.00049863,120]
[381119184,1756055452287,-480.0,0.00049863,120]
[381119186,1756055452297,-1384.65,0.00049863,120]
[381119188,1756055452306,-480.0,0.00049863,120]
[381119190,1756055452316,-480.0,0.00049863,120]
[381119192,1756055452326,-990.73,0.00049863,120]
[381119194,1756055452335,-480.0,0.00049863,120]
[381119195,1756055452344,-1731.98,0.00049863,120]